[Event "Titled Tuesday Blitz June 13 Early 2023"]
[White "Terry, Renato"]
[Black "Nakamura, Hikaru"]
[WhiteFideId "3803457"]
[BlackFideId "2016192"]
[WhiteElo "2575"]
[BlackElo "2874"]
[Result "0-1"]
[Round "7"]
[TimeControl "180+2"]
[Date "2023.06.13"]
[WhiteClock "0:00:00"]
[BlackClock "0:00:35"]
[Board "5"]

1. d4 {[%clk 0:03:00]}  g6 {[%clk 0:03:00]} 2. Nf3 {[%clk 0:03:01]}  Bg7 {[%clk 0:02:59]} 3. c3 {[%clk 0:03:00]}  d6 {[%clk 0:02:59]} 4. e4 {[%clk 0:02:59]}  Nd7 {[%clk 0:02:59]} 5. Bc4 {[%clk 0:02:58]}  e6 {[%clk 0:02:51]} 6. Qe2 {[%clk 0:02:57]}  a6 {[%clk 0:02:51]} 7. a4 {[%clk 0:02:55]}  b6 {[%clk 0:02:51]} 8. Nbd2 {[%clk 0:02:56]}  Bb7 {[%clk 0:02:51]} 9. Nf1 {[%clk 0:02:56]}  Ne7 {[%clk 0:02:35]} 10. Ng3 {[%clk 0:02:56]}  c5 {[%clk 0:02:33]} 11. O-O {[%clk 0:02:34]}  cxd4 {[%clk 0:02:31]} 12. Nxd4 {[%clk 0:02:31]}  O-O {[%clk 0:02:27]} 13. Rd1 {[%clk 0:02:31]}  Qc7 {[%clk 0:02:05]} 14. Bxe6 {[%clk 0:02:21]}  fxe6 {[%clk 0:02:06]} 15. Nxe6 {[%clk 0:02:21]}  Qc6 {[%clk 0:02:05]} 16. Nxf8 {[%clk 0:02:14]}  Rxf8 {[%clk 0:02:05]} 17. Bg5 {[%clk 0:02:09]}  Nc8 {[%clk 0:02:03]} 18. f3 {[%clk 0:01:59]}  a5 {[%clk 0:01:59]} 19. Nf1 {[%clk 0:01:54]}  Nc5 {[%clk 0:01:53]} 20. Qc4+ {[%clk 0:01:54]}  Kh8 {[%clk 0:01:53]} 21. Ne3 {[%clk 0:01:50]}  Ba6 {[%clk 0:01:52]} 22. Qd5 {[%clk 0:01:50]}  Qe8 {[%clk 0:01:50]} 23. Qa2 {[%clk 0:01:25]}  Bb7 {[%clk 0:01:26]} 24. Nd5 {[%clk 0:01:12]}  Bxd5 {[%clk 0:01:22]} 25. Rxd5 {[%clk 0:01:08]}  Be5 {[%clk 0:01:22]} 26. Bh6 {[%clk 0:00:56]}  Rg8 {[%clk 0:01:18]} 27. Be3 {[%clk 0:00:55]}  g5 {[%clk 0:01:19]} 28. h3 {[%clk 0:00:54]}  Ne7 {[%clk 0:01:17]} 29. Rd2 {[%clk 0:00:52]}  Ng6 {[%clk 0:01:17]} 30. Qc4 {[%clk 0:00:34]}  Nf4 {[%clk 0:01:09]} 31. b3 {[%clk 0:00:34]}  h5 {[%clk 0:01:06]} 32. Rf1 {[%clk 0:00:34]}  Rf8 {[%clk 0:00:56]} 33. Rdd1 {[%clk 0:00:27]}  Qg6 {[%clk 0:00:49]} 34. Kh1 {[%clk 0:00:22]}  g4 {[%clk 0:00:46]} 35. fxg4 {[%clk 0:00:20]}  hxg4 {[%clk 0:00:47]} 36. Bxf4 {[%clk 0:00:20]}  Rxf4 {[%clk 0:00:42]} 37. Rxf4 {[%clk 0:00:19]}  Bxf4 {[%clk 0:00:43]} 38. Qd5 {[%clk 0:00:02]}  gxh3 {[%clk 0:00:36]} 39. Rg1 {[%clk 0:00:00]}  Nxe4 {[%clk 0:00:35]} 0-1


[Site "https://www.chess.com"]

[Event "Titled Tuesday Blitz June 13 Early 2023"]
[White "Ahmadzada, Ahmad"]
[Black "Fedoseev, Vladimir"]
[WhiteFideId "13413007"]
[BlackFideId "24130737"]
[WhiteElo "2388"]
[BlackElo "2743"]
[Result "1-0"]
[Round "7"]
[TimeControl "180+2"]
[Date "2023.06.13"]
[WhiteClock "0:00:02"]
[BlackClock "0:00:00"]
[Board "6"]

1. e4 {[%clk 0:03:00]}  Nc6 {[%clk 0:02:47]} 2. Nc3 {[%clk 0:02:57]}  e5 {[%clk 0:02:45]} 3. Bc4 {[%clk 0:02:54]}  Nf6 {[%clk 0:02:43]} 4. d3 {[%clk 0:02:54]}  Bb4 {[%clk 0:02:42]} 5. Ne2 {[%clk 0:02:53]}  d5 {[%clk 0:02:41]} 6. exd5 {[%clk 0:02:52]}  Nxd5 {[%clk 0:02:42]} 7. O-O {[%clk 0:02:51]}  Be6 {[%clk 0:02:40]} 8. Ne4 {[%clk 0:02:48]}  Be7 {[%clk 0:02:35]} 9. f4 {[%clk 0:02:28]}  f5 {[%clk 0:02:05]} 10. N4g3 {[%clk 0:01:35]}  O-O {[%clk 0:02:04]} 11. fxe5 {[%clk 0:01:35]}  Nxe5 {[%clk 0:02:04]} 12. Bb3 {[%clk 0:01:31]}  g6 {[%clk 0:01:53]} 13. d4 {[%clk 0:01:29]}  Nf7 {[%clk 0:01:26]} 14. c4 {[%clk 0:01:28]}  Nf6 {[%clk 0:01:26]} 15. Nf4 {[%clk 0:01:25]}  Bd7 {[%clk 0:01:24]} 16. c5 {[%clk 0:01:25]}  Kg7 {[%clk 0:01:19]} 17. Bd2 {[%clk 0:01:10]}  b6 {[%clk 0:01:16]} 18. Bc3 {[%clk 0:01:00]}  bxc5 {[%clk 0:01:07]} 19. dxc5 {[%clk 0:00:51]}  Bxc5+ {[%clk 0:01:03]} 20. Kh1 {[%clk 0:00:51]}  Nd6 {[%clk 0:00:37]} 21. Nfh5+ {[%clk 0:00:24]}  gxh5 {[%clk 0:00:36]} 22. Nxh5+ {[%clk 0:00:25]}  Kg6 {[%clk 0:00:29]} 23. Nxf6 {[%clk 0:00:09]}  Rxf6 {[%clk 0:00:26]} 24. Qd5 {[%clk 0:00:10]}  Bb6 {[%clk 0:00:15]} 25. Rf3 {[%clk 0:00:08]}  Ne4 {[%clk 0:00:09]} 26. Bxf6 {[%clk 0:00:08]}  Nxf6 {[%clk 0:00:08]} 27. Qf7+ {[%clk 0:00:04]}  Kg5 {[%clk 0:00:07]} 28. Rg3+ {[%clk 0:00:03]}  Ng4 {[%clk 0:00:06]} 29. Qg7+ {[%clk 0:00:01]}  Kh5 {[%clk 0:00:00]} 30. Rh3+ {[%clk 0:00:02]} 1-0


[Site "https://www.chess.com"]

[Event "Titled Tuesday Blitz June 13 Early 2023"]
[White "Madaminov, Mukhiddin"]
[Black "Wojtaszek, Radoslaw"]
[WhiteFideId "14210703"]
[BlackFideId "1118358"]
[WhiteElo "2511"]
[BlackElo "2586"]
[Result "1-0"]
[Round "7"]
[TimeControl "180+2"]
[Date "2023.06.13"]
[WhiteClock "0:01:38"]
[BlackClock "0:00:42"]
[Board "11"]

1. d4 {[%clk 0:03:00]}  Nf6 {[%clk 0:02:59]} 2. Nc3 {[%clk 0:02:58]}  d5 {[%clk 0:02:59]} 3. Bf4 {[%clk 0:02:57]}  a6 {[%clk 0:02:55]} 4. e3 {[%clk 0:02:58]}  c5 {[%clk 0:02:53]} 5. dxc5 {[%clk 0:02:58]}  Nc6 {[%clk 0:02:39]} 6. a3 {[%clk 0:02:56]}  e5 {[%clk 0:02:34]} 7. Bg5 {[%clk 0:02:56]}  Be6 {[%clk 0:02:24]} 8. b4 {[%clk 0:02:53]}  Be7 {[%clk 0:02:23]} 9. Na4 {[%clk 0:02:52]}  Qc7 {[%clk 0:02:18]} 10. Nf3 {[%clk 0:02:51]}  Rd8 {[%clk 0:02:16]} 11. Be2 {[%clk 0:02:47]}  h6 {[%clk 0:02:16]} 12. Bh4 {[%clk 0:02:47]}  d4 {[%clk 0:01:55]} 13. Qc1 {[%clk 0:02:15]}  dxe3 {[%clk 0:01:53]} 14. fxe3 {[%clk 0:02:16]}  Ne4 {[%clk 0:01:32]} 15. Bxe7 {[%clk 0:02:11]}  Qxe7 {[%clk 0:01:25]} 16. O-O {[%clk 0:02:09]}  O-O {[%clk 0:01:24]} 17. Nb6 {[%clk 0:02:05]}  Ng5 {[%clk 0:01:21]} 18. Qe1 {[%clk 0:02:02]}  e4 {[%clk 0:01:14]} 19. Nxg5 {[%clk 0:02:02]}  Qxg5 {[%clk 0:01:15]} 20. Rf4 {[%clk 0:02:02]}  Nd4 {[%clk 0:01:03]} 21. Bd1 {[%clk 0:01:44]}  Nf3+ {[%clk 0:01:00]} 22. Bxf3 {[%clk 0:01:42]}  exf3 {[%clk 0:01:01]} 23. Rxf3 {[%clk 0:01:43]}  Bg4 {[%clk 0:00:47]} 24. Rg3 {[%clk 0:01:40]}  Qh5 {[%clk 0:00:43]} 25. Qc3 {[%clk 0:01:40]}  f6 {[%clk 0:00:42]} 26. Qc4+ {[%clk 0:01:38]} 1-0


[Site "https://www.chess.com"]

[Event "Titled Tuesday Blitz June 13 Early 2023"]
[White "Keymer, Vincent"]
[Black "Rakotomaharo, Fy Antenaina"]
[WhiteFideId "12940690"]
[BlackFideId "13100050"]
[WhiteElo "2669"]
[BlackElo "2427"]
[Result "1-0"]
[Round "7"]
[TimeControl "180+2"]
[Date "2023.06.13"]
[WhiteClock "0:00:10"]
[BlackClock "0:00:02"]
[Board "15"]

1. a3 {[%clk 0:03:00]}  d5 {[%clk 0:02:55]} 2. Nf3 {[%clk 0:03:01]}  Bf5 {[%clk 0:02:54]} 3. c4 {[%clk 0:03:00]}  e6 {[%clk 0:02:51]} 4. Qb3 {[%clk 0:03:00]}  Nc6 {[%clk 0:02:42]} 5. Qxb7 {[%clk 0:02:59]}  Na5 {[%clk 0:02:39]} 6. Qb5+ {[%clk 0:02:57]}  c6 {[%clk 0:02:40]} 7. Qa4 {[%clk 0:02:58]}  dxc4 {[%clk 0:02:31]} 8. Nc3 {[%clk 0:02:50]}  Rc8 {[%clk 0:02:24]} 9. e4 {[%clk 0:02:48]}  Bg6 {[%clk 0:02:24]} 10. Bxc4 {[%clk 0:02:40]}  Nxc4 {[%clk 0:02:24]} 11. Qxc4 {[%clk 0:02:40]}  Bd6 {[%clk 0:02:20]} 12. O-O {[%clk 0:02:19]}  Ne7 {[%clk 0:02:19]} 13. d4 {[%clk 0:02:16]}  O-O {[%clk 0:02:18]} 14. Bg5 {[%clk 0:02:05]}  f6 {[%clk 0:02:14]} 15. e5 {[%clk 0:01:53]}  fxg5 {[%clk 0:02:04]} 16. Qxe6+ {[%clk 0:01:52]}  Bf7 {[%clk 0:01:36]} 17. Qxd6 {[%clk 0:01:52]}  Qxd6 {[%clk 0:01:36]} 18. exd6 {[%clk 0:01:53]}  Nf5 {[%clk 0:01:37]} 19. Nxg5 {[%clk 0:01:51]}  Bc4 {[%clk 0:01:34]} 20. Rfe1 {[%clk 0:01:47]}  Nxd6 {[%clk 0:01:32]} 21. Rad1 {[%clk 0:01:42]}  Bb3 {[%clk 0:01:28]} 22. Rc1 {[%clk 0:01:22]}  Nf5 {[%clk 0:01:20]} 23. Nf3 {[%clk 0:01:19]}  Rfd8 {[%clk 0:01:17]} 24. Re4 {[%clk 0:01:13]}  Rd7 {[%clk 0:01:10]} 25. Rf4 {[%clk 0:00:53]}  g6 {[%clk 0:01:07]} 26. Ne4 {[%clk 0:00:50]}  Re7 {[%clk 0:00:51]} 27. g4 {[%clk 0:00:45]}  Ng7 {[%clk 0:00:52]} 28. Nc5 {[%clk 0:00:38]}  Bd5 {[%clk 0:00:50]} 29. Ne5 {[%clk 0:00:39]}  a5 {[%clk 0:00:45]} 30. h4 {[%clk 0:00:24]}  Ne6 {[%clk 0:00:37]} 31. Nxe6 {[%clk 0:00:22]}  Rxe6 {[%clk 0:00:38]} 32. Rc5 {[%clk 0:00:17]}  Ra8 {[%clk 0:00:27]} 33. f3 {[%clk 0:00:13]}  a4 {[%clk 0:00:23]} 34. Kf2 {[%clk 0:00:13]}  Ra7 {[%clk 0:00:19]} 35. Kg3 {[%clk 0:00:12]}  Ra6 {[%clk 0:00:18]} 36. g5 {[%clk 0:00:11]}  Re7 {[%clk 0:00:18]} 37. Rf6 {[%clk 0:00:10]}  Raa7 {[%clk 0:00:07]} 38. Nxc6 {[%clk 0:00:10]}  Bxc6 {[%clk 0:00:07]} 39. Rfxc6 {[%clk 0:00:11]}  Rab7 {[%clk 0:00:06]} 40. Rc4 {[%clk 0:00:10]}  Rxb2 {[%clk 0:00:05]} 41. Rc8+ {[%clk 0:00:09]}  Kf7 {[%clk 0:00:06]} 42. R8c7 {[%clk 0:00:10]}  Rd2 {[%clk 0:00:02]} 43. Rxe7+ {[%clk 0:00:10]}  Kxe7 {[%clk 0:00:03]} 44. Rxa4 {[%clk 0:00:10]}  Kd6 {[%clk 0:00:04]} 45. Ra7 {[%clk 0:00:10]}  Rxd4 {[%clk 0:00:04]} 46. Rxh7 {[%clk 0:00:10]}  Ke6 {[%clk 0:00:02]} 47. Rg7 {[%clk 0:00:10]} 1-0


[Site "https://www.chess.com"]

[Event "Titled Tuesday Blitz June 13 Early 2023"]
[White "Babazada, Khazar"]
[Black "Papasimakopoulos, Alexandros"]
[WhiteFideId "13413554"]
[BlackFideId "4244125"]
[WhiteElo "2369"]
[BlackElo "2359"]
[Result "1-0"]
[Round "7"]
[TimeControl "180+2"]
[Date "2023.06.13"]
[WhiteClock "0:00:06"]
[BlackClock "0:00:04"]
[Board "16"]

1. Nf3 {[%clk 0:03:00]}  g6 {[%clk 0:02:51]} 2. e4 {[%clk 0:02:59]}  c6 {[%clk 0:02:49]} 3. d4 {[%clk 0:02:59]}  d5 {[%clk 0:02:49]} 4. Nc3 {[%clk 0:02:59]}  Bg4 {[%clk 0:02:48]} 5. h3 {[%clk 0:02:58]}  Bxf3 {[%clk 0:02:48]} 6. Qxf3 {[%clk 0:02:59]}  e6 {[%clk 0:02:48]} 7. Bd3 {[%clk 0:02:58]}  Bg7 {[%clk 0:02:48]} 8. O-O {[%clk 0:02:55]}  Nd7 {[%clk 0:02:45]} 9. Rd1 {[%clk 0:02:53]}  Ne7 {[%clk 0:02:41]} 10. Ne2 {[%clk 0:02:52]}  O-O {[%clk 0:02:36]} 11. c3 {[%clk 0:02:52]}  f5 {[%clk 0:02:34]} 12. exd5 {[%clk 0:02:51]}  exd5 {[%clk 0:02:33]} 13. Nf4 {[%clk 0:02:51]}  Rf6 {[%clk 0:02:18]} 14. Re1 {[%clk 0:02:30]}  Nf8 {[%clk 0:02:17]} 15. Bd2 {[%clk 0:02:29]}  Nc8 {[%clk 0:02:17]} 16. Qg3 {[%clk 0:02:09]}  Nd6 {[%clk 0:02:16]} 17. f3 {[%clk 0:02:10]}  Qd7 {[%clk 0:02:09]} 18. h4 {[%clk 0:01:56]}  Nc4 {[%clk 0:01:56]} 19. Bxc4 {[%clk 0:01:55]}  dxc4 {[%clk 0:01:57]} 20. Re2 {[%clk 0:01:48]}  Re8 {[%clk 0:01:54]} 21. Rae1 {[%clk 0:01:48]}  Rxe2 {[%clk 0:01:55]} 22. Rxe2 {[%clk 0:01:49]}  h6 {[%clk 0:01:48]} 23. Qe1 {[%clk 0:01:43]}  Kf7 {[%clk 0:01:44]} 24. b3 {[%clk 0:01:42]}  c5 {[%clk 0:01:14]} 25. bxc4 {[%clk 0:01:24]}  cxd4 {[%clk 0:01:08]} 26. cxd4 {[%clk 0:01:25]}  Qxd4+ {[%clk 0:01:02]} 27. Kh1 {[%clk 0:01:26]}  Qxc4 {[%clk 0:01:01]} 28. Re7+ {[%clk 0:01:26]}  Kg8 {[%clk 0:01:01]} 29. Bc3 {[%clk 0:01:20]}  Rf7 {[%clk 0:00:57]} 30. Bxg7 {[%clk 0:01:13]}  Kxg7 {[%clk 0:00:50]} 31. Qe5+ {[%clk 0:01:11]}  Kg8 {[%clk 0:00:48]} 32. Nd5 {[%clk 0:01:05]}  Rxe7 {[%clk 0:00:42]} 33. Nxe7+ {[%clk 0:01:06]}  Kf7 {[%clk 0:00:40]} 34. Nd5 {[%clk 0:01:04]}  Qc5 {[%clk 0:00:33]} 35. Qf6+ {[%clk 0:00:55]}  Ke8 {[%clk 0:00:33]} 36. Qe5+ {[%clk 0:00:53]}  Kf7 {[%clk 0:00:25]} 37. h5 {[%clk 0:00:17]}  gxh5 {[%clk 0:00:22]} 38. Qxf5+ {[%clk 0:00:18]}  Kg7 {[%clk 0:00:17]} 39. Qf6+ {[%clk 0:00:16]}  Kh7 {[%clk 0:00:16]} 40. Ne7 {[%clk 0:00:12]}  Qc1+ {[%clk 0:00:08]} 41. Kh2 {[%clk 0:00:12]}  Qg5 {[%clk 0:00:08]} 42. Qf7+ {[%clk 0:00:10]}  Qg7 {[%clk 0:00:07]} 43. Qe8 {[%clk 0:00:08]}  h4 {[%clk 0:00:05]} 44. Nf5 {[%clk 0:00:06]}  Qf6 {[%clk 0:00:05]} 45. Qe4 {[%clk 0:00:04]}  Ng6 {[%clk 0:00:04]} 46. Qxb7+ {[%clk 0:00:05]}  Kh8 {[%clk 0:00:02]} 47. Qa8+ {[%clk 0:00:05]}  Kh7 {[%clk 0:00:02]} 48. Qxa7+ {[%clk 0:00:06]}  Kh8 {[%clk 0:00:03]} 49. Qa8+ {[%clk 0:00:06]}  Kh7 {[%clk 0:00:04]} 50. Qe4 {[%clk 0:00:06]}  h5 {[%clk 0:00:03]} 51. a4 {[%clk 0:00:06]}  Qb6 {[%clk 0:00:02]} 52. a5 {[%clk 0:00:06]}  Qc7+ {[%clk 0:00:02]} 53. Kh3 {[%clk 0:00:04]}  Qxa5 {[%clk 0:00:03]} 54. Qb7+ {[%clk 0:00:04]}  Ne7 {[%clk 0:00:02]} 55. Qxe7+ {[%clk 0:00:04]}  Kg6 {[%clk 0:00:03]} 56. Nxh4+ {[%clk 0:00:05]}  Kh6 {[%clk 0:00:03]} 57. Qf6+ {[%clk 0:00:05]}  Kh7 {[%clk 0:00:04]} 58. Qf7+ {[%clk 0:00:06]}  Kh6 {[%clk 0:00:04]} 59. Qg6# {[%clk 0:00:06]} 1-0


[Site "https://www.chess.com"]

[Event "Titled Tuesday Blitz June 13 Early 2023"]
[White "Le, Tuan Minh"]
[Black "Mekhitarian, Krikor Sevag"]
[WhiteFideId "12401153"]
[BlackFideId "2107660"]
[WhiteElo "2566"]
[BlackElo "2604"]
[Result "0-1"]
[Round "7"]
[TimeControl "180+2"]
[Date "2023.06.13"]
[WhiteClock "0:00:02"]
[BlackClock "0:00:02"]
[Board "18"]

1. d4 {[%clk 0:02:52]}  Nf6 {[%clk 0:02:59]} 2. Nf3 {[%clk 0:02:52]}  g6 {[%clk 0:02:51]} 3. Nbd2 {[%clk 0:02:51]}  d5 {[%clk 0:02:45]} 4. e3 {[%clk 0:02:50]}  Bg7 {[%clk 0:02:45]} 5. b4 {[%clk 0:02:50]}  O-O {[%clk 0:02:44]} 6. Bb2 {[%clk 0:02:50]}  c6 {[%clk 0:02:39]} 7. c4 {[%clk 0:02:50]}  Ne4 {[%clk 0:02:13]} 8. Be2 {[%clk 0:02:47]}  Nd7 {[%clk 0:02:08]} 9. O-O {[%clk 0:02:46]}  Nxd2 {[%clk 0:02:05]} 10. Qxd2 {[%clk 0:02:45]}  Nf6 {[%clk 0:02:05]} 11. Rfd1 {[%clk 0:02:34]}  Ne4 {[%clk 0:02:03]} 12. Qc2 {[%clk 0:02:34]}  Nd6 {[%clk 0:02:02]} 13. c5 {[%clk 0:02:30]}  Ne4 {[%clk 0:01:31]} 14. b5 {[%clk 0:02:26]}  Qc7 {[%clk 0:01:28]} 15. h3 {[%clk 0:02:14]}  cxb5 {[%clk 0:01:06]} 16. Bxb5 {[%clk 0:02:10]}  Bd7 {[%clk 0:01:06]} 17. Bd3 {[%clk 0:01:45]}  Bc6 {[%clk 0:00:44]} 18. Ne5 {[%clk 0:01:44]}  Bxe5 {[%clk 0:00:40]} 19. dxe5 {[%clk 0:01:45]}  Ng5 {[%clk 0:00:38]} 20. Rac1 {[%clk 0:01:40]}  Rad8 {[%clk 0:00:36]} 21. Qb3 {[%clk 0:01:34]}  Qc8 {[%clk 0:00:34]} 22. Bf1 {[%clk 0:01:30]}  Ne6 {[%clk 0:00:32]} 23. Qb4 {[%clk 0:01:27]}  Qc7 {[%clk 0:00:31]} 24. Qh4 {[%clk 0:01:28]}  Qd7 {[%clk 0:00:29]} 25. f4 {[%clk 0:01:27]}  Ng7 {[%clk 0:00:28]} 26. Bd4 {[%clk 0:01:19]}  Rc8 {[%clk 0:00:28]} 27. g4 {[%clk 0:01:17]}  Bb5 {[%clk 0:00:26]} 28. Bg2 {[%clk 0:01:16]}  Bc6 {[%clk 0:00:25]} 29. Kh2 {[%clk 0:01:13]}  e6 {[%clk 0:00:24]} 30. Bf3 {[%clk 0:01:10]}  Qd8 {[%clk 0:00:22]} 31. Qf2 {[%clk 0:01:09]}  Bb5 {[%clk 0:00:22]} 32. h4 {[%clk 0:01:09]}  Bc4 {[%clk 0:00:20]} 33. h5 {[%clk 0:01:09]}  Qe7 {[%clk 0:00:20]} 34. hxg6 {[%clk 0:01:08]}  fxg6 {[%clk 0:00:20]} 35. Kg2 {[%clk 0:01:07]}  g5 {[%clk 0:00:17]} 36. Qg3 {[%clk 0:01:06]}  Qf7 {[%clk 0:00:16]} 37. Rh1 {[%clk 0:00:23]}  gxf4 {[%clk 0:00:15]} 38. Qh2 {[%clk 0:00:23]}  h5 {[%clk 0:00:12]} 39. gxh5 {[%clk 0:00:15]}  fxe3 {[%clk 0:00:12]} 40. Qg3 {[%clk 0:00:16]}  Kh8 {[%clk 0:00:12]} 41. Bg4 {[%clk 0:00:07]}  Nf5 {[%clk 0:00:11]} 42. Bxf5 {[%clk 0:00:07]}  Qxf5 {[%clk 0:00:12]} 43. Kh2 {[%clk 0:00:03]}  Rg8 {[%clk 0:00:09]} 44. Qh4 {[%clk 0:00:04]}  Rcf8 {[%clk 0:00:04]} 45. Rcg1 {[%clk 0:00:02]}  Rxg1 {[%clk 0:00:02]} 46. Qf2 {[%clk 0:00:02]} 0-1


[Site "https://www.chess.com"]

[Event "Titled Tuesday Blitz June 13 Early 2023"]
[White "Bortnyk, Olexandr"]
[Black "Rastbod, Ali"]
[WhiteFideId "14120828"]
[BlackFideId "12567477"]
[WhiteElo "2733"]
[BlackElo "2281"]
[Result "1-0"]
[Round "7"]
[TimeControl "180+2"]
[Date "2023.06.13"]
[WhiteClock "0:00:06"]
[BlackClock "0:00:00"]
[Board "23"]

1. e4 {[%clk 0:03:00]}  c6 {[%clk 0:02:56]} 2. c4 {[%clk 0:03:00]}  d5 {[%clk 0:02:57]} 3. cxd5 {[%clk 0:03:01]}  cxd5 {[%clk 0:02:58]} 4. exd5 {[%clk 0:03:02]}  Nf6 {[%clk 0:02:58]} 5. Qa4+ {[%clk 0:03:02]}  Bd7 {[%clk 0:02:58]} 6. Qb3 {[%clk 0:03:01]}  e6 {[%clk 0:02:58]} 7. Qxb7 {[%clk 0:02:51]}  exd5 {[%clk 0:02:57]} 8. Nc3 {[%clk 0:01:53]}  Nc6 {[%clk 0:02:31]} 9. Bb5 {[%clk 0:01:50]}  Rb8 {[%clk 0:02:24]} 10. Qa6 {[%clk 0:01:50]}  Nb4 {[%clk 0:01:54]} 11. Bxd7+ {[%clk 0:01:50]}  Qxd7 {[%clk 0:01:53]} 12. Qe2+ {[%clk 0:01:51]}  Qe6 {[%clk 0:01:40]} 13. Qxe6+ {[%clk 0:01:42]}  fxe6 {[%clk 0:01:41]} 14. Kd1 {[%clk 0:01:43]}  Nd3 {[%clk 0:01:32]} 15. Nh3 {[%clk 0:01:43]}  Bc5 {[%clk 0:01:31]} 16. f3 {[%clk 0:01:41]}  Kd7 {[%clk 0:01:25]} 17. b3 {[%clk 0:01:30]}  g5 {[%clk 0:01:14]} 18. Ke2 {[%clk 0:01:28]}  Nb4 {[%clk 0:01:04]} 19. Bb2 {[%clk 0:01:28]}  Rhg8 {[%clk 0:00:57]} 20. Na4 {[%clk 0:01:19]}  Be7 {[%clk 0:00:57]} 21. Nf2 {[%clk 0:01:13]}  g4 {[%clk 0:00:53]} 22. a3 {[%clk 0:01:04]}  gxf3+ {[%clk 0:00:46]} 23. gxf3 {[%clk 0:01:04]}  Nc2 {[%clk 0:00:46]} 24. Rac1 {[%clk 0:01:02]}  Nxa3 {[%clk 0:00:46]} 25. Nc5+ {[%clk 0:01:00]}  Bxc5 {[%clk 0:00:38]} 26. Rxc5 {[%clk 0:01:00]}  Nh5 {[%clk 0:00:38]} 27. Bxa3 {[%clk 0:00:56]}  Rxb3 {[%clk 0:00:38]} 28. Rc3 {[%clk 0:00:38]}  Nf4+ {[%clk 0:00:34]} 29. Kd1 {[%clk 0:00:34]}  Rb1+ {[%clk 0:00:23]} 30. Rc1 {[%clk 0:00:33]}  Rb3 {[%clk 0:00:21]} 31. Rc3 {[%clk 0:00:32]}  Rb1+ {[%clk 0:00:21]} 32. Bc1 {[%clk 0:00:32]}  Rg2 {[%clk 0:00:16]} 33. Nd3 {[%clk 0:00:28]}  Ne2 {[%clk 0:00:16]} 34. Ra3 {[%clk 0:00:24]}  Nxc1 {[%clk 0:00:07]} 35. Nxc1 {[%clk 0:00:23]}  Rb2 {[%clk 0:00:07]} 36. Rd3 {[%clk 0:00:13]}  a5 {[%clk 0:00:08]} 37. Re1 {[%clk 0:00:08]}  a4 {[%clk 0:00:07]} 38. Re2 {[%clk 0:00:07]}  Rg1+ {[%clk 0:00:08]} 39. Re1 {[%clk 0:00:08]}  Rxe1+ {[%clk 0:00:06]} 40. Kxe1 {[%clk 0:00:09]}  Rb1 {[%clk 0:00:06]} 41. Kd1 {[%clk 0:00:09]}  Rb4 {[%clk 0:00:05]} 42. Ne2 {[%clk 0:00:07]}  Rh4 {[%clk 0:00:05]} 43. Rd4 {[%clk 0:00:05]}  Rxh2 {[%clk 0:00:05]} 44. Rxa4 {[%clk 0:00:06]}  Kd6 {[%clk 0:00:05]} 45. f4 {[%clk 0:00:06]}  h5 {[%clk 0:00:04]} 46. Ra6+ {[%clk 0:00:06]}  Kd7 {[%clk 0:00:00]} 47. Nd4 {[%clk 0:00:06]} 1-0


[Site "https://www.chess.com"]

[Event "Titled Tuesday Blitz June 13 Early 2023"]
[White "Turayev, Shahruh"]
[Black "Swiercz, Dariusz"]
[WhiteFideId "14003856"]
[BlackFideId "1126881"]
[WhiteElo "2113"]
[BlackElo "2620"]
[Result "0-1"]
[Round "7"]
[TimeControl "180+2"]
[Date "2023.06.13"]
[WhiteClock "0:00:06"]
[BlackClock "0:00:06"]
[Board "24"]

1. e4 {[%clk 0:03:00]}  c5 {[%clk 0:02:59]} 2. Nc3 {[%clk 0:03:00]}  Nc6 {[%clk 0:02:59]} 3. Bb5 {[%clk 0:03:01]}  Nd4 {[%clk 0:02:59]} 4. Bc4 {[%clk 0:03:01]}  a6 {[%clk 0:02:59]} 5. Nge2 {[%clk 0:03:01]}  e6 {[%clk 0:02:47]} 6. a4 {[%clk 0:03:00]}  Qc7 {[%clk 0:02:40]} 7. O-O {[%clk 0:02:59]}  Nf6 {[%clk 0:02:36]} 8. d3 {[%clk 0:02:59]}  Nc6 {[%clk 0:02:19]} 9. f4 {[%clk 0:02:53]}  d6 {[%clk 0:02:20]} 10. f5 {[%clk 0:02:51]}  exf5 {[%clk 0:01:54]} 11. exf5 {[%clk 0:02:52]}  Be7 {[%clk 0:01:53]} 12. Bg5 {[%clk 0:02:41]}  O-O {[%clk 0:01:53]} 13. Ng3 {[%clk 0:02:39]}  Qd8 {[%clk 0:01:50]} 14. Bxf6 {[%clk 0:02:33]}  Bxf6 {[%clk 0:01:50]} 15. Nh5 {[%clk 0:02:31]}  Bxc3 {[%clk 0:01:12]} 16. bxc3 {[%clk 0:02:30]}  Qg5 {[%clk 0:01:13]} 17. Ng3 {[%clk 0:02:04]}  Ne5 {[%clk 0:01:11]} 18. Bd5 {[%clk 0:02:01]}  Ng4 {[%clk 0:01:05]} 19. Qf3 {[%clk 0:01:52]}  Qe3+ {[%clk 0:00:54]} 20. Kh1 {[%clk 0:01:48]}  Qxf3 {[%clk 0:00:49]} 21. Rxf3 {[%clk 0:01:42]}  Nf6 {[%clk 0:00:48]} 22. c4 {[%clk 0:01:34]}  Bd7 {[%clk 0:00:42]} 23. Bxb7 {[%clk 0:01:26]}  Ra7 {[%clk 0:00:41]} 24. Bd5 {[%clk 0:01:22]}  Rb8 {[%clk 0:00:40]} 25. Ne4 {[%clk 0:01:03]}  Nxe4 {[%clk 0:00:39]} 26. dxe4 {[%clk 0:01:04]}  Bxa4 {[%clk 0:00:34]} 27. Rc3 {[%clk 0:00:41]}  a5 {[%clk 0:00:22]} 28. g4 {[%clk 0:00:36]}  Be8 {[%clk 0:00:22]} 29. g5 {[%clk 0:00:35]}  Kf8 {[%clk 0:00:20]} 30. h4 {[%clk 0:00:35]}  f6 {[%clk 0:00:20]} 31. Kh2 {[%clk 0:00:34]}  a4 {[%clk 0:00:20]} 32. Kg3 {[%clk 0:00:34]}  Ke7 {[%clk 0:00:20]} 33. Kf4 {[%clk 0:00:34]}  Rb2 {[%clk 0:00:19]} 34. h5 {[%clk 0:00:30]}  fxg5+ {[%clk 0:00:15]} 35. Kxg5 {[%clk 0:00:31]}  h6+ {[%clk 0:00:16]} 36. Kf4 {[%clk 0:00:30]}  Kf6 {[%clk 0:00:17]} 37. Raa3 {[%clk 0:00:17]}  Bxh5 {[%clk 0:00:12]} 38. Bc6 {[%clk 0:00:17]}  Rb1 {[%clk 0:00:07]} 39. Rd3 {[%clk 0:00:16]}  Rf1+ {[%clk 0:00:07]} 40. Kg3 {[%clk 0:00:15]}  Ke7 {[%clk 0:00:05]} 41. Rxa4 {[%clk 0:00:13]}  Rxa4 {[%clk 0:00:05]} 42. Bxa4 {[%clk 0:00:14]}  Bf7 {[%clk 0:00:06]} 43. Bb5 {[%clk 0:00:14]}  Rc1 {[%clk 0:00:04]} 44. Ra3 {[%clk 0:00:14]}  Rxc2 {[%clk 0:00:03]} 45. Ra7+ {[%clk 0:00:14]}  Kf6 {[%clk 0:00:04]} 46. Rd7 {[%clk 0:00:15]}  Rd2 {[%clk 0:00:03]} 47. Kf4 {[%clk 0:00:14]}  Rd4 {[%clk 0:00:02]} 48. Ke3 {[%clk 0:00:13]}  h5 {[%clk 0:00:02]} 49. Rd8 {[%clk 0:00:13]}  g5 {[%clk 0:00:02]} 50. fxg6 {[%clk 0:00:08]}  Bxg6 {[%clk 0:00:02]} 51. Rf8+ {[%clk 0:00:08]}  Kg7 {[%clk 0:00:02]} 52. Rd8 {[%clk 0:00:07]}  Rxe4+ {[%clk 0:00:03]} 53. Kf3 {[%clk 0:00:07]}  Rd4 {[%clk 0:00:04]} 54. Rd7+ {[%clk 0:00:07]}  Kf6 {[%clk 0:00:04]} 55. Bc6 {[%clk 0:00:07]}  h4 {[%clk 0:00:05]} 56. Bd5 {[%clk 0:00:07]}  Bf5 {[%clk 0:00:05]} 57. Rf7+ {[%clk 0:00:06]}  Ke5 {[%clk 0:00:06]} 58. Re7+ {[%clk 0:00:07]}  Kf6 {[%clk 0:00:06]} 59. Rf7+ {[%clk 0:00:07]}  Kg6 {[%clk 0:00:07]} 60. Rf8 {[%clk 0:00:08]}  h3 {[%clk 0:00:07]} 61. Rh8 {[%clk 0:00:08]}  Kg5 {[%clk 0:00:07]} 62. Kg3 {[%clk 0:00:08]}  Rg4+ {[%clk 0:00:06]} 63. Kf3 {[%clk 0:00:09]}  Rd4 {[%clk 0:00:07]} 64. Kg3 {[%clk 0:00:09]}  Kf6 {[%clk 0:00:06]} 65. Kf3 {[%clk 0:00:09]}  Kg7 {[%clk 0:00:06]} 66. Rh5 {[%clk 0:00:06]}  Bg4+ {[%clk 0:00:06]} 0-1


[Site "https://www.chess.com"]